Workbook

Sheet Comparative Business Income
B3: Comparative Business Income
B4: XYZ Corporation
A5: 2000-02-02
B6: =NOW() -> 2010-04-19T20:16:59.750
D8: % of | F8: % of | H8: % of
C9: 2007 | D9: Income | E9: =IF(C9,C9+1,"") -> 2008 | F9: Income | G9: =IF(SUM(E9),E9+1,"") -> 2009 | H9: Income
B10: Gross Income for the year | C10: $120,000 | D10: 100.0% | E10: $135,000 | F10: 100.0% | G10: $140,000 | H10: =IF(G10,G10/$G$10,"") -> 100.0%
B11: Business Expenses
B12: Cost of goods sold | C12: $0 | E12: $0 | G12: $0 | H12: =IF(G12,G12/G12,"") -> 
B13: Advertising | C13: $5,000 | D13: 4.2% | E13: $7,000 | F13: 5.2% | G13: $9,000 | H13: =IF(G13,G13/$G$10,"") -> 6.4%
B14: Car and truck expenses | C14: $500 | D14: 0.4% | E14: $500 | F14: 0.4% | G14: $500 | H14: 0.4%
B15: Fees | C15: $2,000 | D15: 1.7% | E15: $2,000 | F15: 1.5% | G15: $2,000 | H15: 1.4%
B16: Depreciation | C16: $5,000 | D16: 4.2% | E16: $8,000 | F16: 5.9% | G16: $5,000 | H16: 3.6%
B17: Employee benefit programs
B18: Insurance (other than health) | C18: $2,000 | D18: 1.7% | E18: $2,000 | F18: 1.5% | G18: $2,000 | H18: 1.4%
B19: Interest
B20: Legal and professional
B21: Office Expense
B22: Wages
B23: Pension and profit sharing | C23: $15,000 | D23: 12.5% | E23: $16,000 | F23: 11.9% | G23: $17,000 | H23: 12.1%
B24: Rent | C24: $6,000 | D24: 5.0% | E24: $7,000 | F24: 5.2% | G24: $8,000 | H24: 5.7%
B25: Other leases | C25: $500 | D25: 0.4% | E25: $500 | F25: 0.4% | G25: $500 | H25: 0.4%
B26: Repairs
B27: Maintenance
B28: Supplies | C28: $1,000 | D28: 0.8% | E28: $1,000 | F28: 0.7% | G28: $1,000 | H28: 0.7%
B29: Taxes and licenses
B30: Travel, meals, etc. | C30: $2,000 | D30: 1.7% | E30: $2,000 | F30: 1.5% | G30: $2,000 | H30: 1.4%
B31: Utilities | C31: $2,000 | D31: 1.7% | E31: $2,000 | F31: 1.5% | G31: $2,000 | H31: 1.4%
B32: Other
B33: Total Expenses | C33: =IF(SUM(C12:C32),SUM(C12:C32),"") -> $41,000 | D33: =IF(SUM(C10),C33/$C$10,"") -> 34.2% | E33: =IF(SUM(E12:E32),SUM(E12:E32),"") -> $48,000 | F33: =IF(E10,E33/$E$10,"") -> 35.6% | G33: =IF(SUM(G12:G32),SUM(G12:G32),"") -> $49,000 | H33: =IF(G10,G33/$G$10,"") -> 35.0%
B34: Net Business Income (Loss) | C34: =IF(SUM(C10,C33),C10-C33,"") -> $79,000 | D34: =IF(C10,C34/$C$10,"") -> 65.8% | E34: =IF(SUM(E10,E33),E10-E33,"") -> $87,000 | F34: =IF(E10,E34/$E$10,"") -> 64.4% | G34: =IF(SUM(G10,G33),G10-G33,"") -> $91,000 | H34: =IF(G10,G34/$G$10,"") -> 65.0%
